[Event "Titled Tuesday Blitz May 30 Early 2023"]
[White "Novikov, Evgenij"]
[Black "Martinez Ramirez, Lennis"]
[WhiteFideId "4125380"]
[BlackFideId "3509079"]
[WhiteElo "2242"]
[BlackElo "2410"]
[Result "1-0"]
[Round "11"]
[TimeControl "180+2"]
[Date "2023.05.30"]
[WhiteClock "0:00:03"]
[BlackClock "0:00:00"]

1. e4 {[%clk 0:03:00]}  c5 {[%clk 0:02:59]} 2. Nf3 {[%clk 0:03:00]}  Nc6 {[%clk 0:03:00]} 3. d4 {[%clk 0:02:58]}  cxd4 {[%clk 0:03:01]} 4. c3 {[%clk 0:02:59]}  Nf6 {[%clk 0:02:59]} 5. e5 {[%clk 0:02:59]}  Nd5 {[%clk 0:02:58]} 6. cxd4 {[%clk 0:03:00]}  d6 {[%clk 0:02:59]} 7. exd6 {[%clk 0:03:00]}  e6 {[%clk 0:02:54]} 8. Nc3 {[%clk 0:03:00]}  Nxc3 {[%clk 0:02:48]} 9. bxc3 {[%clk 0:03:01]}  Bxd6 {[%clk 0:02:48]} 10. Bd3 {[%clk 0:03:01]}  h6 {[%clk 0:02:26]} 11. O-O {[%clk 0:03:00]}  O-O {[%clk 0:02:26]} 12. Qe2 {[%clk 0:03:00]}  Bd7 {[%clk 0:02:18]} 13. Rb1 {[%clk 0:02:56]}  b6 {[%clk 0:02:16]} 14. Ne5 {[%clk 0:02:04]}  Bxe5 {[%clk 0:01:56]} 15. dxe5 {[%clk 0:02:05]}  Ne7 {[%clk 0:01:56]} 16. Ba3 {[%clk 0:01:55]}  Re8 {[%clk 0:01:52]} 17. Rfd1 {[%clk 0:01:45]}  Qc7 {[%clk 0:01:27]} 18. Bxe7 {[%clk 0:01:42]}  Rxe7 {[%clk 0:00:29]} 19. Qe4 {[%clk 0:01:41]}  Ree8 {[%clk 0:00:30]} 20. Qh7+ {[%clk 0:01:28]}  Kf8 {[%clk 0:00:30]} 21. Qh8+ {[%clk 0:01:29]}  Ke7 {[%clk 0:00:30]} 22. Qxg7 {[%clk 0:01:30]}  Rg8 {[%clk 0:00:27]} 23. Qf6+ {[%clk 0:01:29]}  Ke8 {[%clk 0:00:27]} 24. Be4 {[%clk 0:01:14]}  Bc6 {[%clk 0:00:26]} 25. Qf3 {[%clk 0:00:57]}  Rc8 {[%clk 0:00:20]} 26. Rd3 {[%clk 0:00:39]}  Rg5 {[%clk 0:00:18]} 27. Rbd1 {[%clk 0:00:38]}  Bxe4 {[%clk 0:00:18]} 28. Qxe4 {[%clk 0:00:39]}  Qxe5 {[%clk 0:00:18]} 29. Qb7 {[%clk 0:00:25]}  Qc7 {[%clk 0:00:14]} 30. Qe4 {[%clk 0:00:20]}  Qc6 {[%clk 0:00:14]} 31. Rd8+ {[%clk 0:00:18]}  Ke7 {[%clk 0:00:15]} 32. Qb4+ {[%clk 0:00:05]}  Kf6 {[%clk 0:00:15]} 33. Qf4+ {[%clk 0:00:05]}  Kg7 {[%clk 0:00:15]} 34. g3 {[%clk 0:00:05]}  Qxc3 {[%clk 0:00:14]} 35. Rxc8 {[%clk 0:00:02]}  Qxc8 {[%clk 0:00:13]} 36. h4 {[%clk 0:00:02]}  Rg6 {[%clk 0:00:12]} 37. Qd4+ {[%clk 0:00:03]}  Rf6 {[%clk 0:00:09]} 38. Rd3 {[%clk 0:00:03]}  Qc5 {[%clk 0:00:09]} 39. Qg4+ {[%clk 0:00:02]}  Rg6 {[%clk 0:00:06]} 40. Qf3 {[%clk 0:00:01]}  Qc7 {[%clk 0:00:04]} 41. Kg2 {[%clk 0:00:01]}  Qe7 {[%clk 0:00:04]} 42. Re3 {[%clk 0:00:01]}  a5 {[%clk 0:00:02]} 43. Qe4 {[%clk 0:00:01]}  e5 {[%clk 0:00:03]} 44. h5 {[%clk 0:00:02]}  Rf6 {[%clk 0:00:02]} 45. Qg4+ {[%clk 0:00:02]}  Kh7 {[%clk 0:00:03]} 46. Rc3 {[%clk 0:00:03]}  Re6 {[%clk 0:00:00]} 47. Rc8 {[%clk 0:00:03]} 1-0


[Site "https://www.chess.com"]

[Event "Titled Tuesday Blitz May 30 Early 2023"]
[White "Itgelt, Khuyagtsogt"]
[Black "Fernandez Garcia, Gumersindo"]
[WhiteFideId "4902912"]
[BlackFideId "24516740"]
[WhiteElo "2227"]
[BlackElo "2093"]
[Result "1-0"]
[Round "11"]
[TimeControl "180+2"]
[Date "2023.05.30"]
[WhiteClock "0:00:36"]
[BlackClock "0:00:18"]

1. d4 {[%clk 0:03:00]}  Nf6 {[%clk 0:02:59]} 2. Bf4 {[%clk 0:03:01]}  d5 {[%clk 0:02:58]} 3. e3 {[%clk 0:03:01]}  c5 {[%clk 0:02:58]} 4. Nf3 {[%clk 0:03:00]}  Nc6 {[%clk 0:02:59]} 5. Be2 {[%clk 0:02:57]}  Bg4 {[%clk 0:02:54]} 6. h3 {[%clk 0:02:55]}  Bh5 {[%clk 0:02:54]} 7. O-O {[%clk 0:02:53]}  e6 {[%clk 0:02:44]} 8. Nbd2 {[%clk 0:02:51]}  Be7 {[%clk 0:02:39]} 9. dxc5 {[%clk 0:02:48]}  Bxc5 {[%clk 0:02:36]} 10. c4 {[%clk 0:02:49]}  O-O {[%clk 0:02:34]} 11. Rc1 {[%clk 0:02:46]}  Bd6 {[%clk 0:02:33]} 12. cxd5 {[%clk 0:02:42]}  Nxd5 {[%clk 0:02:29]} 13. Bxd6 {[%clk 0:02:41]}  Qxd6 {[%clk 0:02:30]} 14. Qb3 {[%clk 0:02:37]}  Qb4 {[%clk 0:02:26]} 15. a3 {[%clk 0:02:32]}  Qxb3 {[%clk 0:02:26]} 16. Nxb3 {[%clk 0:02:33]}  Rfd8 {[%clk 0:02:14]} 17. Nc5 {[%clk 0:02:27]}  Rab8 {[%clk 0:02:08]} 18. b4 {[%clk 0:02:27]}  Nce7 {[%clk 0:01:51]} 19. g4 {[%clk 0:02:23]}  Bg6 {[%clk 0:01:51]} 20. Ne5 {[%clk 0:02:19]}  b6 {[%clk 0:01:37]} 21. Nb3 {[%clk 0:02:01]}  Rbc8 {[%clk 0:01:32]} 22. Ba6 {[%clk 0:01:47]}  Rxc1 {[%clk 0:01:31]} 23. Rxc1 {[%clk 0:01:47]}  f6 {[%clk 0:01:28]} 24. Nxg6 {[%clk 0:01:40]}  hxg6 {[%clk 0:01:28]} 25. Nd4 {[%clk 0:01:41]}  Kf7 {[%clk 0:01:27]} 26. Kg2 {[%clk 0:01:34]}  g5 {[%clk 0:01:27]} 27. Kg3 {[%clk 0:01:27]}  Rd7 {[%clk 0:01:15]} 28. Bb5 {[%clk 0:01:20]}  Rd8 {[%clk 0:01:15]} 29. h4 {[%clk 0:01:12]}  gxh4+ {[%clk 0:01:15]} 30. Kxh4 {[%clk 0:01:13]}  Rh8+ {[%clk 0:01:14]} 31. Kg3 {[%clk 0:01:13]}  Rd8 {[%clk 0:01:00]} 32. Kf3 {[%clk 0:01:01]}  Rh8 {[%clk 0:00:53]} 33. Bd7 {[%clk 0:00:56]}  e5 {[%clk 0:00:44]} 34. Nb5 {[%clk 0:00:44]}  Rh3+ {[%clk 0:00:36]} 35. Kg2 {[%clk 0:00:42]}  Rh8 {[%clk 0:00:36]} 36. Nd6+ {[%clk 0:00:35]}  Kg6 {[%clk 0:00:36]} 37. Bf5+ {[%clk 0:00:35]}  Nxf5 {[%clk 0:00:25]} 38. gxf5+ {[%clk 0:00:36]}  Kg5 {[%clk 0:00:18]} 39. Nf7+ {[%clk 0:00:36]} 1-0


[Site "https://www.chess.com"]

[Event "Titled Tuesday Blitz May 30 Early 2023"]
[White "Janik, Igor"]
[Black "koncheto"]
[WhiteFideId "1159259"]
[WhiteElo "2484"]
[BlackElo "2598"]
[Result "1-0"]
[Round "11"]
[TimeControl "180+2"]
[Date "2023.05.30"]
[WhiteClock "0:00:46"]
[BlackClock "0:00:05"]

1. e4 {[%clk 0:03:00]}  e5 {[%clk 0:02:56]} 2. Nf3 {[%clk 0:03:01]}  Nf6 {[%clk 0:02:56]} 3. Nxe5 {[%clk 0:03:00]}  Nc6 {[%clk 0:02:57]} 4. Nxc6 {[%clk 0:02:58]}  dxc6 {[%clk 0:02:58]} 5. d3 {[%clk 0:02:58]}  Bc5 {[%clk 0:02:58]} 6. Be2 {[%clk 0:02:28]}  h5 {[%clk 0:02:56]} 7. Be3 {[%clk 0:02:21]}  Bxe3 {[%clk 0:02:40]} 8. fxe3 {[%clk 0:02:22]}  Ng4 {[%clk 0:02:38]} 9. Bxg4 {[%clk 0:02:21]}  hxg4 {[%clk 0:02:26]} 10. Qe2 {[%clk 0:02:19]}  Be6 {[%clk 0:02:11]} 11. Nc3 {[%clk 0:02:19]}  Qd6 {[%clk 0:02:07]} 12. g3 {[%clk 0:02:12]}  Qxg3+ {[%clk 0:02:06]} 13. hxg3 {[%clk 0:01:49]}  Rxh1+ {[%clk 0:02:07]} 14. Qf1 {[%clk 0:01:50]}  Rxf1+ {[%clk 0:02:05]} 15. Kxf1 {[%clk 0:01:51]}  Ke7 {[%clk 0:01:27]} 16. Kg2 {[%clk 0:01:51]}  c5 {[%clk 0:01:22]} 17. b3 {[%clk 0:01:43]}  c6 {[%clk 0:01:17]} 18. Rh1 {[%clk 0:01:42]}  Rd8 {[%clk 0:01:12]} 19. Kf2 {[%clk 0:01:33]}  Kf6 {[%clk 0:01:09]} 20. Ne2 {[%clk 0:01:31]}  a5 {[%clk 0:01:00]} 21. d4 {[%clk 0:01:27]}  cxd4 {[%clk 0:00:35]} 22. exd4 {[%clk 0:01:27]}  b5 {[%clk 0:00:31]} 23. Ke3 {[%clk 0:01:24]}  a4 {[%clk 0:00:24]} 24. Nf4 {[%clk 0:01:20]}  Ra8 {[%clk 0:00:19]} 25. Nd3 {[%clk 0:01:16]}  axb3 {[%clk 0:00:17]} 26. axb3 {[%clk 0:01:16]}  Ra2 {[%clk 0:00:16]} 27. Nb4 {[%clk 0:01:16]}  Rb2 {[%clk 0:00:14]} 28. Kd3 {[%clk 0:01:06]}  Bxb3 {[%clk 0:00:14]} 29. Kc3 {[%clk 0:01:05]}  Bxc2 {[%clk 0:00:03]} 30. Rf1+ {[%clk 0:00:51]}  Kg5 {[%clk 0:00:03]} 31. Rf5+ {[%clk 0:00:47]}  Kg6 {[%clk 0:00:03]} 32. Kxb2 {[%clk 0:00:48]}  Bxe4 {[%clk 0:00:03]} 33. Rc5 {[%clk 0:00:49]}  f5 {[%clk 0:00:03]} 34. Nxc6 {[%clk 0:00:49]}  Kg5 {[%clk 0:00:02]} 35. d5 {[%clk 0:00:47]}  f4 {[%clk 0:00:02]} 36. d6+ {[%clk 0:00:48]}  Kf6 {[%clk 0:00:03]} 37. d7 {[%clk 0:00:45]}  fxg3 {[%clk 0:00:03]} 38. d8=Q+ {[%clk 0:00:45]}  Kg6 {[%clk 0:00:03]} 39. Rg5+ {[%clk 0:00:45]}  Kh7 {[%clk 0:00:04]} 40. Qe7 {[%clk 0:00:45]}  Bg6 {[%clk 0:00:05]} 41. Ne5 {[%clk 0:00:45]}  g2 {[%clk 0:00:05]} 42. Rxg6 {[%clk 0:00:45]}  g1=Q {[%clk 0:00:05]} 43. Qxg7# {[%clk 0:00:46]} 1-0


[Site "https://www.chess.com"]

[Event "Titled Tuesday Blitz May 30 Early 2023"]
[White "Shuvalov, Evgenij"]
[Black "Matinian, Nikita"]
[WhiteFideId "4187237"]
[BlackFideId "24129100"]
[WhiteElo "2080"]
[BlackElo "2422"]
[Result "1/2-1/2"]
[Round "11"]
[TimeControl "180+2"]
[Date "2023.05.30"]
[WhiteClock "0:00:49"]
[BlackClock "0:00:59"]

1. d4 {[%clk 0:03:00]}  g6 {[%clk 0:02:59]} 2. c4 {[%clk 0:03:00]}  Bg7 {[%clk 0:02:59]} 3. e4 {[%clk 0:03:00]}  d6 {[%clk 0:02:59]} 4. Nc3 {[%clk 0:02:59]}  e5 {[%clk 0:03:00]} 5. Nf3 {[%clk 0:02:57]}  Nd7 {[%clk 0:02:43]} 6. Be2 {[%clk 0:02:54]}  Ngf6 {[%clk 0:02:42]} 7. O-O {[%clk 0:02:54]}  O-O {[%clk 0:02:42]} 8. Be3 {[%clk 0:02:54]}  Ng4 {[%clk 0:02:41]} 9. Bg5 {[%clk 0:02:54]}  f6 {[%clk 0:02:42]} 10. Bh4 {[%clk 0:02:54]}  c6 {[%clk 0:02:29]} 11. d5 {[%clk 0:02:54]}  c5 {[%clk 0:02:30]} 12. h3 {[%clk 0:02:51]}  Nh6 {[%clk 0:02:29]} 13. g4 {[%clk 0:02:51]}  Nf7 {[%clk 0:02:24]} 14. Ne1 {[%clk 0:02:51]}  Bh6 {[%clk 0:02:23]} 15. Ng2 {[%clk 0:02:51]}  Bf4 {[%clk 0:02:23]} 16. Bg3 {[%clk 0:02:49]}  g5 {[%clk 0:02:22]} 17. Ne3 {[%clk 0:02:48]}  Nh8 {[%clk 0:02:18]} 18. Nf5 {[%clk 0:02:47]}  Nb6 {[%clk 0:02:15]} 19. Kg2 {[%clk 0:02:45]}  Ng6 {[%clk 0:02:07]} 20. Rh1 {[%clk 0:02:44]}  Bxf5 {[%clk 0:01:59]} 21. exf5 {[%clk 0:02:45]}  Nh4+ {[%clk 0:02:00]} 22. Kh2 {[%clk 0:02:27]}  Qd7 {[%clk 0:01:46]} 23. Ne4 {[%clk 0:02:25]}  Nc8 {[%clk 0:01:38]} 24. Rb1 {[%clk 0:02:19]}  a5 {[%clk 0:01:26]} 25. a4 {[%clk 0:02:08]}  Ra6 {[%clk 0:01:26]} 26. Qc2 {[%clk 0:02:05]}  Rb6 {[%clk 0:01:26]} 27. b3 {[%clk 0:02:03]}  Ra6 {[%clk 0:01:25]} 28. Kg1 {[%clk 0:01:55]}  b6 {[%clk 0:01:23]} 29. Kf1 {[%clk 0:01:52]}  Qe8 {[%clk 0:01:23]} 30. Bxh4 {[%clk 0:01:42]}  gxh4 {[%clk 0:01:23]} 31. Bf3 {[%clk 0:01:41]}  Ra7 {[%clk 0:01:23]} 32. Ke2 {[%clk 0:01:41]}  Rg7 {[%clk 0:01:23]} 33. Rbg1 {[%clk 0:01:41]}  Qe7 {[%clk 0:01:23]} 34. Qd3 {[%clk 0:01:41]}  Kh8 {[%clk 0:01:18]} 35. Kd1 {[%clk 0:01:40]}  Qf7 {[%clk 0:01:18]} 36. Kc2 {[%clk 0:01:40]}  Ne7 {[%clk 0:01:18]} 37. Nxd6 {[%clk 0:01:35]}  Qg8 {[%clk 0:01:18]} 38. Ne4 {[%clk 0:01:34]}  Nc8 {[%clk 0:01:16]} 39. Rd1 {[%clk 0:01:10]}  Rd7 {[%clk 0:01:16]} 40. d6 {[%clk 0:01:04]}  Qf7 {[%clk 0:01:16]} 41. Qd5 {[%clk 0:01:02]}  Qxd5 {[%clk 0:01:14]} 42. Rxd5 {[%clk 0:01:03]}  Kg7 {[%clk 0:01:13]} 43. Rhd1 {[%clk 0:01:03]}  Rfd8 {[%clk 0:01:14]} 44. Bg2 {[%clk 0:00:51]}  Kf7 {[%clk 0:01:11]} 45. Bf3 {[%clk 0:00:52]}  Bh6 {[%clk 0:01:08]} 46. Kc3 {[%clk 0:00:49]}  Bf4 {[%clk 0:01:03]} 47. Kc2 {[%clk 0:00:49]}  h6 {[%clk 0:01:01]} 48. Kc3 {[%clk 0:00:48]}  Kg7 {[%clk 0:00:58]} 49. Kc2 {[%clk 0:00:48]}  Kf7 {[%clk 0:00:58]} 50. Kc3 {[%clk 0:00:48]}  Kg7 {[%clk 0:00:59]} 51. Kc2 {[%clk 0:00:49]}  Kf7 {[%clk 0:00:59]} 1/2-1/2


[Site "https://www.chess.com"]

[Event "Titled Tuesday Blitz May 30 Early 2023"]
[White "Tologon tegin, Semetei"]
[Black "Ehlvest, Jaan"]
[WhiteFideId "13800574"]
[BlackFideId "4500016"]
[WhiteElo "2247"]
[BlackElo "2442"]
[Result "0-1"]
[Round "11"]
[TimeControl "180+2"]
[Date "2023.05.30"]
[WhiteClock "0:01:52"]
[BlackClock "0:02:33"]

1. e4 {[%clk 0:02:45]}  g6 {[%clk 0:02:58]} 2. d4 {[%clk 0:02:42]}  Bg7 {[%clk 0:02:58]} 3. Nc3 {[%clk 0:02:43]}  c6 {[%clk 0:02:58]} 4. Nf3 {[%clk 0:02:36]}  d5 {[%clk 0:02:57]} 5. e5 {[%clk 0:02:33]}  Bg4 {[%clk 0:02:53]} 6. h3 {[%clk 0:02:32]}  Bxf3 {[%clk 0:02:53]} 7. Qxf3 {[%clk 0:02:33]}  e6 {[%clk 0:02:52]} 8. Bd3 {[%clk 0:02:31]}  Ne7 {[%clk 0:02:51]} 9. Ne2 {[%clk 0:02:27]}  c5 {[%clk 0:02:50]} 10. c3 {[%clk 0:02:27]}  Nbc6 {[%clk 0:02:50]} 11. Be3 {[%clk 0:02:27]}  O-O {[%clk 0:02:48]} 12. a3 {[%clk 0:02:25]}  Bxe5 {[%clk 0:02:48]} 13. dxe5 {[%clk 0:02:16]}  Nxe5 {[%clk 0:02:47]} 14. Qf6 {[%clk 0:02:16]}  Nxd3+ {[%clk 0:02:43]} 15. Kd2 {[%clk 0:02:17]}  Nxb2 {[%clk 0:02:41]} 16. Bh6 {[%clk 0:02:12]}  Nf5 {[%clk 0:02:39]} 17. Qxd8 {[%clk 0:02:09]}  Rfxd8 {[%clk 0:02:38]} 18. Bg5 {[%clk 0:01:52]}  Rd7 {[%clk 0:02:33]} 0-1


[Site "https://www.chess.com"]

[Event "Titled Tuesday Blitz May 30 Early 2023"]
[White "Ozates, Tuna"]
[Black "Arabidze, Meri"]
[WhiteFideId "6354521"]
[BlackFideId "13604040"]
[WhiteElo "2151"]
[BlackElo "2405"]
[Result "0-1"]
[Round "11"]
[TimeControl "180+2"]
[Date "2023.05.30"]
[WhiteClock "0:00:22"]
[BlackClock "0:00:23"]

1. e4 {[%clk 0:03:00]}  c5 {[%clk 0:03:00]} 2. Nf3 {[%clk 0:03:00]}  e6 {[%clk 0:03:00]} 3. d4 {[%clk 0:03:00]}  cxd4 {[%clk 0:03:01]} 4. Nxd4 {[%clk 0:03:00]}  Nc6 {[%clk 0:03:02]} 5. Nc3 {[%clk 0:03:01]}  a6 {[%clk 0:03:02]} 6. g3 {[%clk 0:03:00]}  d6 {[%clk 0:03:00]} 7. Bg2 {[%clk 0:03:00]}  Bd7 {[%clk 0:03:00]} 8. O-O {[%clk 0:03:01]}  Nf6 {[%clk 0:02:58]} 9. a4 {[%clk 0:03:00]}  Be7 {[%clk 0:02:58]} 10. Re1 {[%clk 0:03:00]}  O-O {[%clk 0:02:57]} 11. h3 {[%clk 0:02:57]}  Rc8 {[%clk 0:02:55]} 12. g4 {[%clk 0:02:57]}  Nxd4 {[%clk 0:02:50]} 13. Qxd4 {[%clk 0:02:57]}  Bc6 {[%clk 0:02:51]} 14. g5 {[%clk 0:02:57]}  Nd7 {[%clk 0:02:51]} 15. h4 {[%clk 0:02:57]}  b5 {[%clk 0:02:43]} 16. axb5 {[%clk 0:02:56]}  axb5 {[%clk 0:02:44]} 17. Be3 {[%clk 0:02:48]}  Ne5 {[%clk 0:02:40]} 18. f4 {[%clk 0:02:36]}  Nc4 {[%clk 0:02:39]} 19. Bc1 {[%clk 0:02:36]}  e5 {[%clk 0:02:27]} 20. Qf2 {[%clk 0:02:35]}  exf4 {[%clk 0:02:23]} 21. Qxf4 {[%clk 0:02:33]}  f6 {[%clk 0:02:10]} 22. Qg3 {[%clk 0:02:33]}  fxg5 {[%clk 0:02:07]} 23. hxg5 {[%clk 0:02:33]}  Qb6+ {[%clk 0:02:01]} 24. Kh1 {[%clk 0:02:32]}  Rce8 {[%clk 0:01:32]} 25. b3 {[%clk 0:02:28]}  Ne5 {[%clk 0:01:31]} 26. Be3 {[%clk 0:02:27]}  Qd8 {[%clk 0:01:30]} 27. Nd5 {[%clk 0:02:24]}  Bxd5 {[%clk 0:01:29]} 28. exd5 {[%clk 0:02:25]}  Rf5 {[%clk 0:01:21]} 29. Be4 {[%clk 0:02:21]}  Rxg5 {[%clk 0:01:12]} 30. Bxg5 {[%clk 0:02:21]}  Bxg5 {[%clk 0:01:13]} 31. Qh3 {[%clk 0:02:18]}  h6 {[%clk 0:01:10]} 32. Ra7 {[%clk 0:02:12]}  Qb6 {[%clk 0:00:54]} 33. Rb7 {[%clk 0:00:45]}  Qxb7 {[%clk 0:00:49]} 34. Rf1 {[%clk 0:00:42]}  b4 {[%clk 0:00:33]} 35. Qf5 {[%clk 0:00:41]}  g6 {[%clk 0:00:33]} 36. Qf2 {[%clk 0:00:34]}  Qd7 {[%clk 0:00:32]} 37. Qg3 {[%clk 0:00:33]}  Rf8 {[%clk 0:00:28]} 38. Rg1 {[%clk 0:00:22]}  Rf4 {[%clk 0:00:23]} 0-1


[Site "https://www.chess.com"]

[Event "Titled Tuesday Blitz May 30 Early 2023"]
[White "Bilan, Danila"]
[Black "Al-Tarboush, Ward"]
[WhiteFideId "24161918"]
[BlackFideId "7601450"]
[WhiteElo "2182"]
[BlackElo "2265"]
[Result "1-0"]
[Round "11"]
[TimeControl "180+2"]
[Date "2023.05.30"]
[WhiteClock "0:00:08"]
[BlackClock "0:00:17"]

1. d4 {[%clk 0:03:00]}  Nf6 {[%clk 0:02:59]} 2. Nf3 {[%clk 0:03:01]}  b6 {[%clk 0:02:59]} 3. g3 {[%clk 0:03:01]}  Bb7 {[%clk 0:03:00]} 4. Bg2 {[%clk 0:03:01]}  e6 {[%clk 0:02:58]} 5. O-O {[%clk 0:03:00]}  Be7 {[%clk 0:02:58]} 6. c4 {[%clk 0:03:01]}  O-O {[%clk 0:02:58]} 7. d5 {[%clk 0:03:01]}  exd5 {[%clk 0:02:57]} 8. Nh4 {[%clk 0:03:02]}  c6 {[%clk 0:02:55]} 9. cxd5 {[%clk 0:03:02]}  Nxd5 {[%clk 0:02:54]} 10. Nf5 {[%clk 0:03:03]}  Bf6 {[%clk 0:02:54]} 11. e4 {[%clk 0:03:03]}  Ne7 {[%clk 0:02:46]} 12. Nd6 {[%clk 0:02:52]}  Ba6 {[%clk 0:02:46]} 13. Re1 {[%clk 0:02:47]}  Nc8 {[%clk 0:02:44]} 14. Nf5 {[%clk 0:02:16]}  d6 {[%clk 0:02:38]} 15. Nc3 {[%clk 0:01:59]}  b5 {[%clk 0:02:37]} 16. Bf4 {[%clk 0:01:39]}  Be5 {[%clk 0:02:37]} 17. Qg4 {[%clk 0:01:32]}  Qf6 {[%clk 0:02:32]} 18. Rad1 {[%clk 0:01:15]}  Nd7 {[%clk 0:02:28]} 19. Nxg7 {[%clk 0:00:35]}  Qxg7 {[%clk 0:02:22]} 20. Qxd7 {[%clk 0:00:35]}  Bxf4 {[%clk 0:02:16]} 21. gxf4 {[%clk 0:00:36]}  Nb6 {[%clk 0:02:16]} 22. Qxd6 {[%clk 0:00:29]}  Nc4 {[%clk 0:02:15]} 23. Qxc6 {[%clk 0:00:27]}  Bc8 {[%clk 0:02:15]} 24. Rd3 {[%clk 0:00:20]}  Bg4 {[%clk 0:02:05]} 25. Rg3 {[%clk 0:00:19]}  Rac8 {[%clk 0:02:05]} 26. Qxb5 {[%clk 0:00:18]}  a6 {[%clk 0:01:54]} 27. Qb4 {[%clk 0:00:09]}  a5 {[%clk 0:01:22]} 28. Qb5 {[%clk 0:00:08]}  Na3 {[%clk 0:01:07]} 29. Qe5 {[%clk 0:00:08]}  f6 {[%clk 0:01:02]} 30. Qxa5 {[%clk 0:00:06]}  Nc2 {[%clk 0:01:01]} 31. Rf1 {[%clk 0:00:05]}  Kh8 {[%clk 0:00:31]} 32. h3 {[%clk 0:00:05]}  Qh6 {[%clk 0:00:32]} 33. hxg4 {[%clk 0:00:05]}  Qxf4 {[%clk 0:00:32]} 34. Qf5 {[%clk 0:00:06]}  Qc7 {[%clk 0:00:30]} 35. Nd5 {[%clk 0:00:05]}  Qg7 {[%clk 0:00:29]} 36. Rh3 {[%clk 0:00:05]}  Nd4 {[%clk 0:00:30]} 37. Qh5 {[%clk 0:00:04]}  Rc5 {[%clk 0:00:27]} 38. Kh2 {[%clk 0:00:03]}  Ne2 {[%clk 0:00:25]} 39. f4 {[%clk 0:00:03]}  Rb8 {[%clk 0:00:22]} 40. Rf2 {[%clk 0:00:03]}  Rxb2 {[%clk 0:00:22]} 41. Bf3 {[%clk 0:00:03]}  Nxf4 {[%clk 0:00:21]} 42. Rxb2 {[%clk 0:00:04]}  Nxh5 {[%clk 0:00:20]} 43. Rb8+ {[%clk 0:00:04]}  Qg8 {[%clk 0:00:20]} 44. Rxg8+ {[%clk 0:00:05]}  Kxg8 {[%clk 0:00:20]} 45. Rxh5 {[%clk 0:00:06]}  Rc2+ {[%clk 0:00:21]} 46. Kg3 {[%clk 0:00:06]}  Rxa2 {[%clk 0:00:21]} 47. Nxf6+ {[%clk 0:00:06]}  Kg7 {[%clk 0:00:21]} 48. g5 {[%clk 0:00:07]}  Ra5 {[%clk 0:00:20]} 49. Kf4 {[%clk 0:00:06]}  Kg6 {[%clk 0:00:20]} 50. Rh6+ {[%clk 0:00:06]}  Kg7 {[%clk 0:00:21]} 51. Rxh7+ {[%clk 0:00:07]}  Kf8 {[%clk 0:00:21]} 52. Rh8+ {[%clk 0:00:06]}  Kg7 {[%clk 0:00:19]} 53. Rg8+ {[%clk 0:00:06]}  Kf7 {[%clk 0:00:19]} 54. Bh5+ {[%clk 0:00:06]}  Ke7 {[%clk 0:00:19]} 55. Re8+ {[%clk 0:00:07]}  Kd6 {[%clk 0:00:19]} 56. e5+ {[%clk 0:00:07]}  Kc7 {[%clk 0:00:19]} 57. g6 {[%clk 0:00:07]}  Ra4+ {[%clk 0:00:17]} 58. Kf5 {[%clk 0:00:08]} 1-0


[Site "https://www.chess.com"]